fUST/lending_fUST_20251118
["ID","MTS","AMOUNT","RATE_DAILY","PERIOD"]
[394267808,1763413849561,-172.34265761,0.00041095,120]
[394267809,1763413849570,-1434.87,0.00041095,120]
[394267810,1763413849580,-167.561636,0.00041095,120]
[394267811,1763413849589,-487.69307056,0.00041095,120]
[394267812,1763413849597,-167.561636,0.00041095,120]
[394267813,1763413849607,-167.561636,0.00041095,120]
[394267814,1763413849615,-872.54,0.00041095,120]
[394267815,1763413849624,-577.63585876,0.00041095,120]
[394267816,1763413849633,-167.561636,0.00041095,120]
[394267817,1763413849642,-448.92014903,0.00041095,120]
[394267818,1763413849651,-519.7679689,0.00041095,120]
[394267819,1763413849660,-521.73617282,0.00041095,120]
[394267820,1763413849669,-430.90534652,0.00041095,120]
[394267821,1763413849677,-500.0,0.00041095,120]
[394267822,1763413849686,-500.0,0.00041095,120]
[394267823,1763413849695,-511.94349525,0.00041095,120]
[394267824,1763413849704,-222.40722717,0.00041095,120]
[394267825,1763413849713,-500.0,0.00041095,120]
[394267826,1763413849722,-500.0,0.00041095,120]
[394267827,1763413849731,-530.48796476,0.00041095,120]
[394267828,1763413849740,-245.44478023,0.00041095,120]
[394267829,1763413849749,-500.0,0.00041095,120]
[394267830,1763413849758,-509.19426729,0.00041095,120]
[394267831,1763413849768,-546.84934896,0.00041095,120]
[394267832,1763413849777,-151.0,0.00041095,120]
[394267833,1763413849787,-363.44723719,0.00041095,120]
[394267834,1763413849796,-515.66979184,0.00041095,120]
[394267835,1763413849805,-151.0,0.00041095,120]
[394267836,1763413849815,-588.43386295,0.00041095,21]
[394267837,1763413849824,-506.57528888,0.00041095,30]
[394267838,1763413849833,-151.0,0.00041095,120]
[394267839,1763413849843,-155.522592,0.00041095,120]
[394267840,1763413849918,-500.0,0.00041095,120]
[394267841,1763413849928,-151.0,0.00041095,120]
[394267842,1763413849937,-620.28536845,0.00041095,120]
[394267843,1763413849947,-235.84097708,0.00041095,120]
[394267844,1763413849958,-190.24829551,0.00041095,120]
[394267845,1763413849968,-779.61,0.00041095,120]
[394267846,1763413849977,-500.0,0.00041095,120]
[394267847,1763413849987,-508.39215612,0.00041095,120]
[394267848,1763413849996,-500.0,0.00041095,120]
[394267849,1763413850006,-518.79567699,0.00041095,120]
[394267850,1763413850016,-500.0,0.00041095,120]
[394267851,1763413850026,-267.01676227,0.00041095,120]
[394267852,1763413850036,-500.0,0.00041095,120]
[394267853,1763413850045,-542.78624399,0.00041095,120]
[394267854,1763413850055,-511.67659937,0.00041095,120]
[394267855,1763413850067,-599.2577166,0.00041095,120]
[394267856,1763413850077,-500.0,0.00041095,120]
[394267857,1763413850086,-507.65602348,0.00041095,30]
[394267858,1763413850095,-500.0,0.00041095,120]
[394267859,1763413850105,-601.84494665,0.00041095,120]
[394267860,1763413850116,-539.07973337,0.00041095,120]
[394267861,1763413850127,-410.38796484,0.00041095,120]
[394267862,1763413850136,-211.6769272,0.00041095,120]
[394267863,1763413850145,-397.31788664,0.00041095,120]
[394267864,1763413850154,-503.51362548,0.00041095,120]
[394267865,1763413850163,-509.34814303,0.00041095,120]
[394267866,1763413850172,-268.21383773,0.00041095,120]
[394267867,1763413850182,-511.58913327,0.00041095,120]
[394267868,1763413850191,-151.0,0.00041095,120]
[394267869,1763413850200,-500.0,0.00041095,120]
[394267870,1763413850209,-513.74111892,0.00041095,120]
[394267871,1763413850218,-500.0,0.00041095,120]
[394267872,1763413850228,-500.0,0.00041095,120]
[394267873,1763413850237,-500.0,0.00041095,120]
[394267874,1763413850247,-507.21142522,0.00041095,120]
[394267875,1763413850256,-606.07371935,0.00041095,120]
[394267876,1763413850266,-503.4481921,0.00041095,120]
[394267877,1763413850275,-295.82910682,0.00041095,120]
[394267878,1763413850285,-500.0,0.00041095,120]
[394267879,1763413850294,-151.0,0.00041095,120]
[394267880,1763413850303,-486.30731932,0.00041095,120]
[394267881,1763413850312,-151.0,0.00041095,120]
[394267882,1763413850323,-151.0,0.00041095,120]
[394267883,1763413850332,-405.87894474,0.00041095,120]
[394267884,1763413850341,-151.0,0.00041095,120]
[394267885,1763413850351,-555.01923677,0.00041095,120]
[394267886,1763413850360,-500.0,0.00041095,120]
[394267887,1763413850369,-373.67342808,0.00041095,120]
[394267888,1763413850378,-500.0,0.00041095,120]
[394267889,1763413850387,-151.0,0.00041095,120]
[394267890,1763413850396,-400.20966372,0.00041095,120]
[394267891,1763413850404,-500.0,0.00041095,120]
[394267892,1763413850414,-196.88154788,0.00041095,120]
[394267893,1763413850423,-223.84871191,0.00041095,120]
[394267894,1763413850432,-506.44601752,0.00041095,10]
[394267895,1763413850442,-407.0389571,0.00041095,120]
[394267896,1763413850451,-519.42,0.00041095,120]
[394267897,1763413850460,-515.16673278,0.00041095,120]
[394267898,1763413850469,-462.18668182,0.00041095,120]
[394267899,1763413850478,-524.67470116,0.00041095,120]
[394267900,1763413850487,-414.77816035,0.00041095,20]
[394267901,1763413850495,-500.0,0.00041095,120]
[394267902,1763413850504,-552.7724038,0.00041095,120]
[394267903,1763413850513,-218.8386215,0.00041095,60]
[394267904,1763413850523,-550.30227396,0.00041095,120]
[394267905,1763413850532,-504.93751615,0.00041095,120]
[394267906,1763413850541,-314.25416342,0.00041095,120]
[394267907,1763413850550,-540.72011505,0.00041095,120]
[394267908,1763413850559,-523.24375299,0.00041095,120]
[394267909,1763413850570,-343.52151494,0.00041095,120]
[394267910,1763413850579,-534.53023456,0.00041095,120]
[394267911,1763413850587,-250.05408797,0.00041095,120]
[394267912,1763413850597,-500.0,0.00041095,120]
[394267913,1763413850607,-520.62144772,0.00041095,120]
[394267914,1763413850616,-531.87881405,0.00041095,10]
[394267915,1763413850626,-183.63743756,0.00041095,120]
[394267916,1763413850635,-518.47769207,0.00041095,120]
[394267917,1763413850643,-377.11156141,0.00041095,120]
[394267918,1763413850652,-521.19171952,0.00041095,120]
[394267919,1763413850661,-374.69728346,0.00041095,120]
[394267920,1763413850673,-209.06,0.00041095,120]
[394267921,1763413850684,-543.52076265,0.00041095,120]
[394267922,1763413850694,-175.57990626,0.00041095,120]
[394267923,1763413850703,-500.0,0.00041095,120]
[394267924,1763413850714,-500.0,0.00041095,120]
[394267925,1763413850723,-234.67214391,0.00041095,120]
[394267926,1763413850732,-4019.48,0.00041095,3]
[394267927,1763413850741,-374.56961405,0.00041095,120]
[394267928,1763413850750,-500.0,0.00041095,120]
[394267929,1763413850760,-500.0,0.00041095,120]
[394267930,1763413850770,-151.0,0.00041095,120]
[394267931,1763413850778,-151.0,0.00041095,120]
[394267932,1763413850789,-151.0,0.00041095,120]
[394267933,1763413850799,-395.29870989,0.00041095,120]
[394267934,1763413850809,-226.92367817,0.00041095,120]
[394267935,1763413850819,-151.0,0.00041095,120]
[394267936,1763413850828,-276.11348358,0.00041095,120]
[394267937,1763413850837,-253.73267071,0.00041095,120]
[394267938,1763413850846,-1000.0,0.00041095,2]
[394267939,1763413850855,-458.04279978,0.00041095,120]
[394267940,1763413850864,-500.0,0.00041095,120]
[394267941,1763413850872,-500.0,0.00041095,120]
[394267942,1763413850883,-402.20400839,0.00041095,120]
[394267943,1763413850893,-519.62664935,0.00041095,120]
[394267944,1763413850903,-506.16786313,0.00041095,120]
[394267945,1763413850916,-500.0,0.00041095,120]
[394267946,1763413850925,-151.0,0.00041095,120]
[394267947,1763413850935,-151.0,0.00041095,120]
[394267948,1763413850943,-528.31964149,0.00041095,120]
[394267949,1763413850954,-519.70054101,0.00041095,120]
[394267950,1763413850963,-504.82820649,0.00041095,120]
[394267951,1763413850972,-151.0,0.00041095,120]
[394267952,1763413850982,-725.262065,0.00041095,120]
[394267953,1763413850991,-507.13575069,0.00041095,120]
[394267954,1763413850999,-272.83314941,0.00041095,120]
[394267955,1763413851008,-725.262065,0.00041095,120]
[394267956,1763413851017,-449.63767605,0.00041095,120]
[394267957,1763413851026,-512.22793612,0.00041095,120]
[394267958,1763413851035,-725.262065,0.00041095,120]
[394267959,1763413851044,-500.0,0.00041096,120]
[394267960,1763413851053,-151.0,0.00041096,120]
[394267961,1763413851062,-153.4,0.00041096,120]
[394267962,1763413851072,-151.164211,0.00041096,15]
[394267963,1763413851081,-151.164211,0.00041096,15]
[394267964,1763413851090,-151.164211,0.00041096,15]
[394267965,1763413851099,-151.164211,0.00041096,15]
[394267966,1763413851108,-151.0,0.00041096,120]
[394267967,1763413851117,-151.0,0.00041096,120]
[394267968,1763413851126,-154.754158,0.00041096,60]
[394267969,1763413851135,-190.824101,0.00041096,120]
[394267970,1763413851145,-151.0,0.00041096,120]
[394267971,1763413851154,-151.0,0.00041096,120]
[394267972,1763413851163,-200.317176,0.00041096,90]
[394267973,1763413851173,-169.485445,0.00041096,120]
[394267974,1763413851182,-169.485445,0.00041096,120]
[394267975,1763413851191,-169.485445,0.00041096,120]
[394267976,1763413851200,-169.485445,0.00041096,120]
[394267977,1763413851208,-151.0,0.00041096,120]
[394267978,1763413851217,-1156.0,0.00041096,10]
[394267979,1763413851226,-1156.0,0.00041096,10]
[394267980,1763413851235,-1156.0,0.00041096,10]
[394267981,1763413851244,-1156.0,0.00041096,10]
[394267982,1763413851254,-1156.0,0.00041096,10]
[394267983,1763413851262,-1156.0,0.00041096,10]
[394267984,1763413851273,-1156.0,0.00041096,10]
[394267985,1763413851282,-1156.0,0.00041096,10]
[394267986,1763413851291,-1156.0,0.00041096,10]
[394267987,1763413851301,-1156.0,0.00041096,10]
[394267988,1763413851310,-1156.0,0.00041096,10]
[394267989,1763413851320,-1156.0,0.00041096,10]
[394267990,1763413851330,-1156.0,0.00041096,10]
[394267991,1763413851340,-1156.0,0.00041096,10]
[394267992,1763413851350,-1156.0,0.00041096,10]
[394267993,1763413851359,-1156.0,0.00041096,10]
[394267994,1763413851368,-1156.0,0.00041096,10]
[394267995,1763413851378,-1156.0,0.00041096,10]
[394267996,1763413851451,-1156.0,0.00041096,10]
[394267997,1763413851460,-1156.0,0.00041096,10]
[394267998,1763413851469,-1156.0,0.00041096,10]
[394267999,1763413851478,-1156.0,0.00041096,10]
[394268000,1763413851488,-1156.0,0.00041096,10]
[394268001,1763413851496,-1178.44731581,0.00041096,10]
[394268002,1763413851505,-934.0,0.00041096,2]
[394268003,1763413851514,-934.0,0.00041096,2]
[394268004,1763413851523,-934.0,0.00041096,2]
[394268005,1763413851532,-934.0,0.00041096,2]
[394268006,1763413851543,-934.0,0.00041096,2]
[394268007,1763413851551,-934.0,0.00041096,2]
[394268008,1763413851561,-934.0,0.00041096,2]
[394268009,1763413851571,-934.0,0.00041096,2]
[394268010,1763413851580,-934.0,0.00041096,2]
[394268011,1763413851589,-934.0,0.00041096,2]
[394268012,1763413851598,-934.0,0.00041096,2]
[394268013,1763413851608,-934.0,0.00041096,2]
[394268014,1763413851617,-934.0,0.00041096,2]
[394268015,1763413851626,-934.0,0.00041096,2]
[394268016,1763413851635,-934.0,0.00041096,2]
[394268017,1763413851644,-934.0,0.00041096,2]
[394268018,1763413851653,-934.0,0.00041096,2]
[394268019,1763413851662,-934.0,0.00041096,2]
[394268020,1763413851671,-934.0,0.00041096,2]
[394268021,1763413851680,-934.0,0.00041096,2]
[394268022,1763413851689,-934.0,0.00041096,2]
[394268023,1763413851698,-934.0,0.00041096,2]
[394268024,1763413851707,-934.0,0.00041096,2]
[394268025,1763413851715,-934.55418288,0.00041096,2]
[394268026,1763413851724,-500.0,0.00041096,2]
[394268027,1763413851733,-500.0,0.00041096,2]
[394268028,1763413851742,-500.0,0.00041096,2]
[394268029,1763413851751,-500.0,0.00041096,2]
[394268030,1763413851759,-500.0,0.00041096,2]
[394268031,1763413851769,-500.0,0.00041096,2]
[394268032,1763413851778,-224.98673236,0.00041096,2]
[394268033,1763413851787,-802.0,0.00041096,2]
[394268034,1763413851795,-802.0,0.00041096,2]
[394268035,1763413851804,-802.0,0.00041096,2]
[394268036,1763413851814,-802.0,0.00041096,2]
[394268037,1763413851824,-802.0,0.00041096,2]
[394268038,1763413851833,-802.0,0.00041096,2]
[394268039,1763413851842,-802.0,0.00041096,2]
[394268040,1763413851851,-802.0,0.00041096,2]
[394268041,1763413851860,-802.0,0.00041096,2]
[394268042,1763413851869,-802.0,0.00041096,2]
[394268043,1763413851878,-802.0,0.00041096,2]
[394268044,1763413851887,-802.0,0.00041096,2]
[394268045,1763413851896,-802.0,0.00041096,2]
[394268046,1763413851909,-802.0,0.00041096,2]
[394268047,1763413851918,-802.0,0.00041096,2]
[394268048,1763413851927,-802.0,0.00041096,2]
[394268049,1763413851936,-802.0,0.00041096,2]
[394268050,1763413851946,-802.0,0.00041096,2]
[394268051,1763413851955,-802.0,0.00041096,2]
[394268052,1763413851964,-802.0,0.00041096,2]
[394268053,1763413851973,-802.0,0.00041096,2]
[394268054,1763413851982,-802.0,0.00041096,2]
[394268055,1763413851991,-802.0,0.00041096,2]
[394268056,1763413852000,-814.3746354,0.00041096,2]
[394268057,1763413852010,-500.0,0.00041096,31]
[394268058,1763413852019,-500.0,0.00041096,31]
[394268059,1763413852028,-500.0,0.00041096,31]
[394268060,1763413852037,-500.0,0.00041096,31]
[394268061,1763413852046,-500.0,0.00041096,31]
[394268062,1763413852055,-500.0,0.00041096,31]
[394268063,1763413852064,-500.0,0.00041096,31]
[394268064,1763413852075,-500.0,0.00041096,31]
[394268065,1763413852084,-500.0,0.00041096,31]
[394268066,1763413852093,-500.0,0.00041096,31]
[394268067,1763413852103,-500.0,0.00041096,31]
[394268068,1763413852113,-500.0,0.00041096,31]
[394268069,1763413852122,-500.0,0.00041096,31]
[394268070,1763413852132,-500.0,0.00041096,31]
[394268071,1763413852141,-500.0,0.00041096,31]
[394268072,1763413852150,-500.0,0.00041096,31]
[394268073,1763413852160,-323.62498047,0.00041096,31]
[394268074,1763413852169,-500.0,0.00041096,31]
[394268075,1763413852178,-500.0,0.00041096,31]
[394268076,1763413852187,-500.0,0.00041096,31]
[394268077,1763413852196,-500.0,0.00041096,31]
[394268078,1763413852205,-500.0,0.00041096,31]
[394268079,1763413852214,-500.0,0.00041096,31]
[394268080,1763413852224,-300.0,0.00041096,31]
[394268081,1763413852233,-151.0,0.00041096,2]
[394268082,1763413852242,-151.0,0.00041096,2]
[394268083,1763413852251,-151.0,0.00041096,2]
[394268084,1763413852261,-151.0,0.00041096,2]
[394268085,1763413852270,-261.80333903,0.00041096,2]
[394268086,1763413852279,-151.0,0.00041096,2]
[394268087,1763413852288,-185.00000001,0.00041096,2]
[394268088,1763413852297,-500.0,0.00041369,7]
[394268089,1763413852306,-810.65,0.00041369,2]
[394268090,1763413852315,-488.98399846,0.00041369,120]
[394268091,1763413852326,-173.12589604,0.00041369,120]
[394268092,1763413852336,-500.0,0.00041369,120]
[394268093,1763413852347,-500.0,0.00041369,120]
[394268094,1763413852356,-500.0,0.00041369,120]
[394268095,1763413852366,-1450.45,0.00041369,120]
[394268096,1763413852375,-500.0,0.00041369,120]
[394268097,1763413852384,-500.0,0.00041369,120]
[394268098,1763413852393,-153.09910962,0.00041369,120]
[394268099,1763413852402,-500.0,0.00041369,7]
[394268100,1763413852412,-500.0,0.00041369,120]
[394268101,1763413852421,-647.77561182,0.00041369,120]
[394268102,1763413852430,-526.3148607,0.00041369,120]
[394268103,1763413852439,-500.0,0.00041369,120]
[394268104,1763413852449,-500.0,0.00041369,10]
[394268105,1763413852458,-799.17,0.00041369,60]
[394268106,1763413852467,-500.0,0.00041369,120]
[394268107,1763413852476,-500.0,0.00041369,30]
[394268108,1763413852485,-500.0,0.00041369,120]
[394268109,1763413852493,-234.03089119,0.00041369,120]
[394268110,1763413852503,-438.10620369,0.00041369,120]
[394268111,1763413852512,-500.0,0.00041369,120]
[394268112,1763413852521,-500.0,0.00041369,120]
[394268113,1763413852530,-520.61331291,0.00041369,120]
[394268114,1763413852539,-500.0,0.00041369,120]
[394268115,1763413852548,-500.0,0.00041369,7]
[394268116,1763413852558,-500.0,0.00041369,120]
[394268117,1763413852568,-500.0,0.00041369,2]
[394268118,1763413852577,-158.80376058,0.00041369,120]
[394268119,1763413852586,-1000.0,0.00041369,2]
[394268120,1763413852595,-500.0,0.00041369,2]
[394268121,1763413852603,-523.03,0.00041369,7]
[394268122,1763413852612,-560.74874927,0.00041369,120]
[394268123,1763413852621,-1434.87,0.00041369,120]
[394268124,1763413852630,-872.54,0.00041369,120]
[394268125,1763413852638,-151.0,0.00041369,120]
[394268126,1763413852647,-151.0,0.00041369,120]
[394268127,1763413852657,-151.0,0.00041369,120]
[394268128,1763413852665,-779.61,0.00041369,120]
[394268129,1763413852674,-500.0,0.00041369,120]
[394268130,1763413852683,-500.0,0.00041369,120]
[394268131,1763413852692,-490.0,0.00041369,120]
[394268132,1763413852701,-500.0,0.00041369,120]
[394268133,1763413852710,-151.0,0.00041369,120]
[394268134,1763413852719,-633.20604932,0.00041369,120]
[394268135,1763413852728,-500.0,0.00041369,120]
[394268136,1763413852737,-500.0,0.00041369,120]
[394268137,1763413852746,-500.0,0.00041369,120]
[394268138,1763413852755,-151.0,0.00041369,120]
[394268139,1763413852828,-151.0,0.00041369,120]
[394268140,1763413852838,-153.09912,0.00041369,120]
[394268141,1763413852847,-151.0,0.00041369,120]
[394268142,1763413852856,-356.02960528,0.00041369,120]
[394268143,1763413852865,-207.58506,0.00041369,120]
[394268144,1763413852874,-500.0,0.00041369,120]
[394268145,1763413852883,-519.42,0.00041369,120]
[394268146,1763413852893,-238.17135023,0.00041369,120]
[394268147,1763413852902,-4019.48,0.00041369,3]
[394268148,1763413852914,-500.0,0.00041369,120]
[394268149,1763413852923,-151.0,0.00041369,120]
[394268150,1763413852933,-151.0,0.00041369,120]
[394268151,1763413852943,-151.0,0.00041369,120]
[394268152,1763413852954,-1000.0,0.00041369,2]
[394268153,1763413852967,-530.63118008,0.00041369,120]
[394268154,1763413852986,-151.0,0.00041369,120]
[394268155,1763413853006,-151.0,0.00041369,120]
[394268156,1763413853028,-151.0,0.00041369,120]
[394268157,1763413853048,-725.262065,0.00041369,120]
[394268158,1763413853071,-725.262065,0.00041369,120]
[394268159,1763413853093,-725.262065,0.00041369,120]
[394268160,1763413853125,-500.0,0.0004137,120]
[394268161,1763413853148,-2000.0,0.00041477,21]
[394268162,1763413853172,-151.0,0.000415,20]
[394268163,1763413853194,-1395.48,0.000415,14]
[394268164,1763413853215,-280.502859,0.00041642,120]
[394268165,1763413853239,-280.502859,0.00041642,120]
[394268166,1763413853259,-151.0,0.00041642,120]
[394268167,1763413853280,-280.502859,0.00041642,120]
[394268168,1763413853291,-151.0,0.00041642,120]
[394268169,1763413853299,-280.502859,0.00041642,120]
[394268170,1763413853308,-151.0,0.00041642,120]
[394268171,1763413853318,-200.0,0.00041642,7]
[394268172,1763413853327,-151.0,0.00041642,120]
[394268173,1763413853336,-151.0,0.00041642,120]
[394268174,1763413853347,-500.0,0.00041643,7]
[394268175,1763413853357,-810.65,0.00041643,2]
[394268176,1763413853366,-500.0,0.00041643,120]
[394268177,1763413853376,-220.12628778,0.00041643,120]
[394268178,1763413853386,-500.0,0.00041643,120]
[394268179,1763413853396,-1450.45,0.00041643,120]
[394268180,1763413853405,-500.0,0.00041643,120]
[394268181,1763413853415,-500.0,0.00041643,120]
[394268182,1763413853424,-500.0,0.00041643,7]
[394268183,1763413853434,-500.0,0.00041643,120]
[394268184,1763413853443,-500.0,0.00041643,120]
[394268185,1763413853453,-257.95838095,0.00041643,10]
[394268186,1763413853464,-799.17,0.00041643,60]
[394268187,1763413853474,-500.0,0.00041643,120]
[394268188,1763413853483,-500.0,0.00041643,30]
[394268189,1763413853492,-500.0,0.00041643,120]
[394268190,1763413853502,-403.22169855,0.00041643,120]
[394268191,1763413853512,-500.0,0.00041643,120]
[394268192,1763413853521,-500.0,0.00041643,120]
[394268193,1763413853530,-500.0,0.00041643,7]
[394268194,1763413853540,-500.0,0.00041643,120]
[394268195,1763413853549,-411.74413055,0.00041643,2]
[394268196,1763413853559,-1000.0,0.00041643,2]
[394268197,1763413853568,-500.0,0.00041643,2]
[394268198,1763413853577,-523.03,0.00041643,7]
[394268199,1763413853587,-1434.87,0.00041643,120]
[394268200,1763413853596,-872.54,0.00041643,120]
[394268201,1763413853606,-779.61,0.00041643,120]
[394268202,1763413853615,-500.0,0.00041643,120]
[394268203,1763413853624,-446.97539858,0.00041643,120]
[394268204,1763413853633,-500.0,0.00041643,120]
[394268205,1763413853643,-500.0,0.00041643,120]
[394268206,1763413853653,-150.22519424,0.00041643,120]
[394268207,1763413853662,-500.0,0.00041643,120]
[394268208,1763413853672,-519.42,0.00041643,120]
[394268209,1763413853681,-4019.48,0.00041643,3]
[394268210,1763413853690,-500.0,0.00041643,120]
[394268211,1763413853700,-1000.0,0.00041643,2]
[394268212,1763413853710,-540.64,0.00041644,120]
[394268213,1763413853719,-181.639728,0.00041796,120]
[394268214,1763413853729,-151.0,0.00041796,120]
[394268215,1763413853738,-151.0,0.00041796,120]
[394268216,1763413853747,-151.0,0.00041796,120]
[394268217,1763413853757,-151.0,0.00041796,120]
[394268218,1763413853767,-500.0,0.00041917,7]
[394268219,1763413853777,-810.65,0.00041917,2]
[394268220,1763413853787,-500.0,0.00041917,120]
[394268221,1763413853796,-500.0,0.00041917,120]
[394268222,1763413853805,-1450.45,0.00041917,120]
[394268223,1763413853814,-500.0,0.00041917,120]
[394268224,1763413853825,-151.0,0.00041917,120]
[394268225,1763413853835,-151.0,0.00041917,120]
[394268226,1763413853845,-151.0,0.00041917,120]
[394268227,1763413853855,-500.0,0.00041917,120]
[394268228,1763413853865,-151.0,0.00041917,120]
[394268229,1763413853874,-500.0,0.00041917,7]
[394268230,1763413853884,-500.0,0.00041917,120]
[394268231,1763413853894,-500.0,0.00041917,120]
[394268232,1763413853905,-799.17,0.00041917,60]
[394268233,1763413853919,-500.0,0.00041917,120]
[394268234,1763413853928,-500.0,0.00041917,30]
[394268235,1763413853937,-294.57740791,0.00041917,120]
[394268236,1763413853947,-500.0,0.00041917,120]
[394268237,1763413853958,-500.0,0.00041917,120]
[394268238,1763413853968,-500.0,0.00041917,7]
[394268239,1763413853979,-500.0,0.00041917,120]
[394268240,1763413853992,-151.0,0.00041917,2]
[394268241,1763413854001,-151.0,0.00041917,2]
[394268242,1763413854012,-151.0,0.00041917,2]
[394268243,1763413854021,-151.0,0.00041917,120]
[394268244,1763413854031,-151.0,0.00041917,120]
[394268245,1763413854040,-151.0,0.00041917,120]
[394268246,1763413854050,-197.634095,0.00041917,120]
[394268247,1763413854060,-1000.0,0.00041917,2]
[394268248,1763413854071,-197.634095,0.00041917,120]
[394268249,1763413854081,-197.634095,0.00041917,120]
[394268250,1763413854090,-500.0,0.00041917,2]
[394268251,1763413854100,-197.634095,0.00041917,120]
[394268252,1763413854110,-523.03,0.00041917,7]
[394268253,1763413854120,-167.561636,0.00041917,120]
[394268254,1763413854130,-1434.87,0.00041917,120]
[394268255,1763413854140,-167.561636,0.00041917,120]
[394268256,1763413854150,-167.561636,0.00041917,120]
[394268257,1763413854160,-872.54,0.00041917,120]
[394268258,1763413854169,-167.561636,0.00041917,120]
[394268259,1763413854179,-779.61,0.00041917,120]
[394268260,1763413854189,-386.20510697,0.00041917,120]
[394268261,1763413854199,-315.87641812,0.00041917,120]
[394268262,1763413854209,-500.0,0.00041917,120]
[394268263,1763413854218,-500.0,0.00041917,120]
[394268264,1763413854228,-519.42,0.00041917,120]
[394268265,1763413854237,-4019.48,0.00041917,3]
[394268266,1763413854247,-500.0,0.00041917,120]
[394268267,1763413854256,-1000.0,0.00041917,2]
[394268268,1763413854266,-413.0,0.00042009,2]
[394268269,1763413854276,-1000.0,0.00042067,2]
[394268270,1763413854345,-1000.0,0.00042067,2]
[394268271,1763413854356,-286.79113442,0.00042067,2]
[394268272,1763413854366,-1000.0,0.00042067,2]
[394268273,1763413854376,-1000.0,0.00042067,2]
[394268274,1763413854386,-1000.0,0.00042067,2]
[394268275,1763413854395,-500.0,0.00042067,2]
[394268276,1763413854404,-1000.0,0.00042067,2]
[394268277,1763413854413,-500.0,0.00042067,2]
[394268278,1763413854422,-1000.0,0.00042067,2]
[394268279,1763413854432,-500.0,0.00042067,2]
[394268280,1763413854442,-1000.0,0.00042067,2]
[394268281,1763413854452,-500.0,0.00042067,2]
[394268282,1763413854462,-1000.0,0.00042067,2]
[394268283,1763413854471,-250.0,0.00042067,2]
[394268284,1763413854481,-500.0,0.00042067,2]
[394268285,1763413854490,-1000.0,0.00042067,2]
[394268286,1763413854499,-250.0,0.00042067,2]
[394268287,1763413854508,-500.0,0.00042067,2]
[394268288,1763413854518,-1000.0,0.00042067,2]
[394268289,1763413854527,-250.0,0.00042067,2]
[394268290,1763413854536,-500.0,0.00042067,2]
[394268291,1763413854544,-1000.0,0.00042067,2]
[394268292,1763413854554,-250.0,0.00042067,2]
[394268293,1763413854563,-500.0,0.00042067,2]
[394268294,1763413854573,-1000.0,0.00042067,2]
[394268295,1763413854582,-371.00584804,0.00042067,2]
[394268296,1763413854592,-500.0,0.00042067,2]
[394268297,1763413854603,-1000.0,0.00042067,2]
[394268298,1763413854614,-1000.0,0.00042067,2]
[394268299,1763413854624,-500.0,0.00042067,2]
[394268300,1763413854634,-1000.0,0.00042067,2]
[394268301,1763413854643,-500.0,0.00042067,2]
[394268302,1763413854652,-1000.0,0.00042067,2]
[394268303,1763413854663,-500.0,0.00042067,2]
[394268304,1763413854674,-1000.0,0.00042067,2]
[394268305,1763413854683,-1000.0,0.00042067,2]
[394268306,1763413854692,-500.0,0.00042067,2]
[394268307,1763413854701,-1000.0,0.00042067,2]